[Event "*** Titled Tuesday Blitz"]
[Site "Chess.com"]
[Date "2020.05.12"]
[Round "8"]
[White "Oleksandr_Bortnyk"]
[Black "Volodar_Murzin"]
[Result "1-0"]
[WhiteElo "2990"]
[BlackElo "2751"]
[TimeControl "180+1"]
[EndTime "11:35:07 PDT"]
[Termination "Oleksandr_Bortnyk won by resignation"]

1. e4 {[%clk 0:02:59.9]} 1... c6 {[%clk 0:02:58.7]} 2. c4 {[%clk 0:02:59.9]}
2... d5 {[%clk 0:02:58.4]} 3. cxd5 {[%clk 0:03:00.8]} 3... cxd5 {[%clk
0:02:59.2]} 4. exd5 {[%clk 0:03:01.7]} 4... Nf6 {[%clk 0:02:59.3]} 5. Qa4+
{[%clk 0:03:02.3]} 5... Nbd7 {[%clk 0:02:57.7]} 6. Nc3 {[%clk 0:03:02.8]} 6...
g6 {[%clk 0:02:56.9]} 7. Bc4 {[%clk 0:03:03.4]} 7... Bg7 {[%clk 0:02:57.1]} 8.
Nf3 {[%clk 0:03:03.9]} 8... O-O {[%clk 0:02:57.2]} 9. d3 {[%clk 0:03:04.5]} 9...
a6 {[%clk 0:02:48.6]} 10. Qa3 {[%clk 0:03:04.9]} 10... Rb8 {[%clk 0:02:45.7]}
11. Bf4 {[%clk 0:03:04.8]} 11... Ra8 {[%clk 0:02:40.4]} 12. O-O {[%clk
0:03:04.7]} 12... Nb6 {[%clk 0:02:37.8]} 13. Qb3 {[%clk 0:03:04.8]} 13... Bf5
{[%clk 0:02:34.3]} 14. Rfe1 {[%clk 0:02:58.9]} 14... Rc8 {[%clk 0:02:33.2]} 15.
Be5 {[%clk 0:02:12.4]} 15... Bh6 {[%clk 0:02:28.9]} 16. Bd4 {[%clk 0:02:05.6]}
16... Nfd7 {[%clk 0:02:26.6]} 17. Ne4 {[%clk 0:01:39.1]} 17... Bxe4 {[%clk
0:02:15]} 18. Rxe4 {[%clk 0:01:38.5]} 18... Nc5 {[%clk 0:02:13.2]} 19. Bxc5
{[%clk 0:01:36.6]} 19... Rxc5 {[%clk 0:02:13.8]} 20. Rae1 {[%clk 0:01:30.4]}
20... Nc8 {[%clk 0:01:48.1]} 21. Rh4 {[%clk 0:01:07.5]} 21... Bg7 {[%clk
0:01:47]} 22. Qxb7 {[%clk 0:01:03.8]} 22... Nd6 {[%clk 0:01:37.5]} 23. Qa7
{[%clk 0:01:00.7]} 23... Rc7 {[%clk 0:01:13.6]} 24. Qb6 {[%clk 0:00:47.6]} 24...
Qb8 {[%clk 0:00:42]} 25. Qxb8 {[%clk 0:00:46.1]} 25... Rxb8 {[%clk 0:00:42.9]}
26. b3 {[%clk 0:00:45.5]} 26... a5 {[%clk 0:00:37.9]} 27. h3 {[%clk 0:00:41.3]}
27... h6 {[%clk 0:00:29.8]} 28. Ne5 {[%clk 0:00:32.7]} 28... Bxe5 {[%clk
0:00:20.2]} 29. Rxe5 {[%clk 0:00:33.6]} 29... Kg7 {[%clk 0:00:20.7]} 30. Rf4
{[%clk 0:00:30.8]} 30... Rb4 {[%clk 0:00:19.3]} 31. a3 {[%clk 0:00:25]} 31...
Rbb7 {[%clk 0:00:18.4]} 32. Rf3 {[%clk 0:00:22.4]} 32... Ra7 {[%clk 0:00:13.8]}
33. a4 {[%clk 0:00:22.4]} 33... Rab7 {[%clk 0:00:13.5]} 34. g4 {[%clk
0:00:22.7]} 34... Rb4 {[%clk 0:00:10.4]} 35. Kg2 {[%clk 0:00:22.5]} 35... Kf8
{[%clk 0:00:09.8]} 36. Re6 {[%clk 0:00:19.3]} 36... Kg7 {[%clk 0:00:09.6]} 37.
Re1 {[%clk 0:00:19.7]} 37... Kf8 {[%clk 0:00:06.8]} 38. Rfe3 {[%clk 0:00:20.2]}
38... Nb7 {[%clk 0:00:06.5]} 39. h4 {[%clk 0:00:15.8]} 39... Nc5 {[%clk
0:00:06.4]} 40. d4 {[%clk 0:00:09.9]} 40... Nb7 {[%clk 0:00:04]} 41. g5 {[%clk
0:00:06.1]} 41... h5 {[%clk 0:00:04.4]} 42. Rc3 {[%clk 0:00:01.6]} 42... Nd6
{[%clk 0:00:04.6]} 43. Rec1 {[%clk 0:00:02.5]} 43... Kg7 {[%clk 0:00:04.5]} 44.
Kh3 {[%clk 0:00:02.1]} 44... Ne4 {[%clk 0:00:04.5]} 45. R3c2 {[%clk 0:00:02]}
45... Nd6 {[%clk 0:00:04.4]} 46. Kg2 {[%clk 0:00:02.6]} 46... Nf5 {[%clk
0:00:04.3]} 47. Bb5 {[%clk 0:00:03]} 47... Rxc2 {[%clk 0:00:03.2]} 48. Rxc2
{[%clk 0:00:03.9]} 48... Nxh4+ {[%clk 0:00:03.8]} 49. Kg1 {[%clk 0:00:03.7]}
49... Nf3+ {[%clk 0:00:04]} 50. Kf1 {[%clk 0:00:04.3]} 50... Nxd4 {[%clk
0:00:04.5]} 51. Rc4 {[%clk 0:00:04.7]} 51... Nxb3 {[%clk 0:00:04.5]} 52. Rc7
{[%clk 0:00:03.7]} 52... Rg4 {[%clk 0:00:03.7]} 53. Rxe7 {[%clk 0:00:03.9]}
53... Rxg5 {[%clk 0:00:04.2]} 54. d6 {[%clk 0:00:04.5]} 54... Rd5 {[%clk
0:00:04.6]} 55. d7 {[%clk 0:00:03.5]} 55... Nc5 {[%clk 0:00:04.8]} 56. Kg2
{[%clk 0:00:03.4]} 56... Nb7 {[%clk 0:00:04.2]} 57. Bc4 {[%clk 0:00:03]} 57...
Rg5+ {[%clk 0:00:03.7]} 58. Kf1 {[%clk 0:00:03]} 58... Rf5 {[%clk 0:00:03]} 59.
Re8 {[%clk 0:00:03.6]} 59... Kf6 {[%clk 0:00:02.5]} 60. d8=Q+ {[%clk 0:00:03.8]}
60... Nxd8 {[%clk 0:00:03.1]} 61. Rxd8 {[%clk 0:00:04.7]} 61... h4 {[%clk
0:00:03.6]} 62. Rd6+ {[%clk 0:00:04.6]} 62... Kg5 {[%clk 0:00:03.9]} 63. Kg2
{[%clk 0:00:04.5]} 63... h3+ {[%clk 0:00:03.1]} 64. Kxh3 {[%clk 0:00:04.2]}
64... Rxf2 {[%clk 0:00:03.5]} 65. Kg3 {[%clk 0:00:04.1]} 65... Rf5 {[%clk
0:00:03.2]} 66. Ra6 {[%clk 0:00:04]} 66... Rc5 {[%clk 0:00:02.5]} 67. Bxf7
{[%clk 0:00:04.1]} 67... Kf5 {[%clk 0:00:02.7]} 68. Bxg6+ {[%clk 0:00:04.3]}
68... Ke5 {[%clk 0:00:02.7]} 69. Be8 {[%clk 0:00:04.8]} 69... Kd4 {[%clk
0:00:03]} 70. Bb5 {[%clk 0:00:05.2]} 70... Kc3 {[%clk 0:00:03.5]} 71. Rxa5
{[%clk 0:00:05.4]} 71... Kb4 {[%clk 0:00:04.4]} 72. Ra6 {[%clk 0:00:06]} 72...
Re5 {[%clk 0:00:04]} 73. Rf6 {[%clk 0:00:06]} 73... Re1 {[%clk 0:00:03.7]} 74.
Kf4 {[%clk 0:00:06.4]} 74... Ka5 {[%clk 0:00:03.9]} 75. Kf5 {[%clk 0:00:06.6]}
75... Kb4 {[%clk 0:00:04]} 76. Re6 {[%clk 0:00:06.8]} 76... Rd1 {[%clk
0:00:04.1]} 77. Re4+ {[%clk 0:00:06.9]} 77... Kc5 {[%clk 0:00:03.9]} 78. Ke5
{[%clk 0:00:07.8]} 78... Rh1 {[%clk 0:00:03.3]} 79. Rc4+ {[%clk 0:00:07.6]}
79... Kb6 {[%clk 0:00:03.8]} 80. Kd4 {[%clk 0:00:08.2]} 80... Rd1+ {[%clk
0:00:02.5]} 81. Kc3 {[%clk 0:00:08.5]} 81... Rc1+ {[%clk 0:00:03]} 82. Kb2
{[%clk 0:00:08.7]} 82... Rh1 {[%clk 0:00:03]} 83. Rc1 {[%clk 0:00:08.5]} 83...
Rh3 {[%clk 0:00:02]} 84. Rc3 {[%clk 0:00:08.8]} 84... Rh4 {[%clk 0:00:02.2]} 85.
Kb3 {[%clk 0:00:09.2]} 85... Ka5 {[%clk 0:00:02.6]} 86. Ka3 {[%clk 0:00:08.8]}
86... Rg4 {[%clk 0:00:02.5]} 87. Re3 {[%clk 0:00:08.8]} 87... Rf4 {[%clk
0:00:02.6]} 88. Rd3 {[%clk 0:00:08.3]} 88... Rg4 {[%clk 0:00:02.6]} 89. Rd5
{[%clk 0:00:08.7]} 89... Rg3+ {[%clk 0:00:02.7]} 90. Bd3+ {[%clk 0:00:08.9]}
90... Kb6 {[%clk 0:00:03]} 91. Kb4 {[%clk 0:00:09.3]} 1-0

[Event "*** Titled Tuesday Blitz"]
[Site "Chess.com"]
[Date "2020.05.12"]
[Round "8"]
[White "Mikedannnn"]
[Black "LionTheLeon_06"]
[Result "0-1"]
[WhiteElo "2464"]
[BlackElo "2668"]
[TimeControl "180+1"]
[EndTime "11:35:09 PDT"]
[Termination "LionTheLeon_06 won by resignation"]

1. e4 {[%clk 0:03:00.9]} 1... c5 {[%clk 0:02:59.1]} 2. Nf3 {[%clk 0:03:00.8]}
2... d6 {[%clk 0:02:58.9]} 3. d4 {[%clk 0:03:00.9]} 3... cxd4 {[%clk 0:02:59.2]}
4. Nxd4 {[%clk 0:03:01.8]} 4... Nf6 {[%clk 0:02:59.6]} 5. Nc3 {[%clk 0:03:02.4]}
5... a6 {[%clk 0:03:00.3]} 6. f4 {[%clk 0:03:02.1]} 6... e5 {[%clk 0:02:57.6]}
7. Nf3 {[%clk 0:03:02]} 7... Nbd7 {[%clk 0:02:57.8]} 8. a4 {[%clk 0:03:01.9]}
8... Qc7 {[%clk 0:02:56.1]} 9. Bd3 {[%clk 0:03:00.5]} 9... Be7 {[%clk 0:02:53]}
10. O-O {[%clk 0:02:59.7]} 10... O-O {[%clk 0:02:51.2]} 11. Kh1 {[%clk
0:03:00.1]} 11... Nc5 {[%clk 0:02:51.1]} 12. Qe1 {[%clk 0:02:53.5]} 12... exf4
{[%clk 0:02:28.7]} 13. Bxf4 {[%clk 0:02:52.7]} 13... Be6 {[%clk 0:02:26.1]} 14.
Nd4 {[%clk 0:02:48.5]} 14... Nxd3 {[%clk 0:02:14.7]} 15. cxd3 {[%clk 0:02:46.9]}
15... Qb6 {[%clk 0:02:14.5]} 16. Be3 {[%clk 0:02:36.1]} 16... Qd8 {[%clk
0:01:27.9]} 17. Qg3 {[%clk 0:02:33.8]} 17... Re8 {[%clk 0:01:25]} 18. Bh6 {[%clk
0:02:09.1]} 18... g6 {[%clk 0:01:21.1]} 19. Nxe6 {[%clk 0:02:02.1]} 19... fxe6
{[%clk 0:01:20.7]} 20. Qh3 {[%clk 0:02:02.2]} 20... Qc8 {[%clk 0:00:46.2]} 21.
a5 {[%clk 0:01:59.8]} 21... e5 {[%clk 0:00:44.1]} 22. Qxc8 {[%clk 0:01:41]}
22... Raxc8 {[%clk 0:00:45]} 23. Bg5 {[%clk 0:01:40.8]} 23... Nd7 {[%clk
0:00:32]} 24. Bxe7 {[%clk 0:01:40.1]} 24... Rxe7 {[%clk 0:00:32.9]} 25. Nd5
{[%clk 0:01:40.6]} 25... Rf7 {[%clk 0:00:29.5]} 26. Rfc1 {[%clk 0:01:33.9]}
26... Rxc1+ {[%clk 0:00:21.3]} 27. Rxc1 {[%clk 0:01:34.8]} 27... Nc5 {[%clk
0:00:21.6]} 28. Kg1 {[%clk 0:01:27.1]} 28... Nxd3 {[%clk 0:00:20.6]} 29. Rc8+
{[%clk 0:01:25.9]} 29... Kg7 {[%clk 0:00:20.5]} 30. Rd8 {[%clk 0:01:22.1]} 30...
Nxb2 {[%clk 0:00:17.1]} 31. Rxd6 {[%clk 0:01:17.1]} 31... Nc4 {[%clk 0:00:17.4]}
32. Re6 {[%clk 0:01:17.7]} 32... Nxa5 {[%clk 0:00:15.6]} 33. Rxe5 {[%clk
0:01:18]} 33... Nc6 {[%clk 0:00:15.4]} 34. Re6 {[%clk 0:01:17.6]} 34... Nd4
{[%clk 0:00:15.6]} 35. Re7 {[%clk 0:01:14.6]} 35... Rxe7 {[%clk 0:00:14]} 36.
Nxe7 {[%clk 0:01:15.5]} 36... Kf7 {[%clk 0:00:13.9]} 37. Nd5 {[%clk 0:01:15]}
37... b5 {[%clk 0:00:13]} 38. Kf2 {[%clk 0:01:15.5]} 38... Ke6 {[%clk 0:00:13]}
39. Ke3 {[%clk 0:01:16.1]} 39... Nc6 {[%clk 0:00:13.4]} 40. Nc7+ {[%clk
0:01:14.1]} 40... Kd6 {[%clk 0:00:12.9]} 41. Nxa6 {[%clk 0:01:15]} 41... b4
{[%clk 0:00:12.3]} 42. Kd3 {[%clk 0:01:15.3]} 42... b3 {[%clk 0:00:11.9]} 43.
Kc3 {[%clk 0:01:15.6]} 43... Ke5 {[%clk 0:00:12.4]} 44. Nc5 {[%clk 0:01:14.4]}
44... Na5 {[%clk 0:00:12.6]} 45. Kb4 {[%clk 0:01:10.8]} 45... b2 {[%clk
0:00:12.1]} 46. Nd3+ {[%clk 0:01:11]} 46... Kxe4 {[%clk 0:00:12.4]} 47. Nxb2
{[%clk 0:01:11.7]} 47... Nc6+ {[%clk 0:00:12.8]} 48. Kc5 {[%clk 0:01:12.3]}
48... Ne5 {[%clk 0:00:12.8]} 49. Kd6 {[%clk 0:01:09.3]} 49... Ng4 {[%clk
0:00:13.1]} 50. Ke6 {[%clk 0:01:04.7]} 50... Nxh2 {[%clk 0:00:13]} 51. Kf6
{[%clk 0:01:05.4]} 51... Kf4 {[%clk 0:00:07.7]} 52. Kg7 {[%clk 0:01:04.8]} 52...
g5 {[%clk 0:00:08]} 53. Kxh7 {[%clk 0:01:02.8]} 53... Kg3 {[%clk 0:00:08.5]} 54.
Kg6 {[%clk 0:01:01.2]} 54... g4 {[%clk 0:00:09.1]} 55. Nd3 {[%clk 0:00:59.8]}
55... Kxg2 {[%clk 0:00:09.7]} 56. Kg5 {[%clk 0:00:36.1]} 56... g3 {[%clk
0:00:09.9]} 57. Kf4 {[%clk 0:00:35.3]} 57... Nf1 {[%clk 0:00:10.2]} 58. Kg4
{[%clk 0:00:23]} 58... Kh2 {[%clk 0:00:09.9]} 59. Ne1 {[%clk 0:00:22.1]} 59...
Kg1 {[%clk 0:00:09.4]} 60. Kf3 {[%clk 0:00:21]} 60... Kh2 {[%clk 0:00:09.5]} 61.
Kg4 {[%clk 0:00:21.2]} 61... Ne3+ {[%clk 0:00:09.8]} 62. Kf3 {[%clk 0:00:20.6]}
62... Nf5 {[%clk 0:00:10.2]} 63. Kg4 {[%clk 0:00:20.8]} 63... Nd4 {[%clk
0:00:10.4]} 64. Kf4 {[%clk 0:00:20.1]} 64... Ne2+ {[%clk 0:00:08.8]} 65. Kf3
{[%clk 0:00:20.2]} 65... Ng1+ {[%clk 0:00:08.9]} 66. Kg4 {[%clk 0:00:19.4]}
66... Ne2 {[%clk 0:00:07.1]} 67. Kf3 {[%clk 0:00:19.5]} 67... Nd4+ {[%clk
0:00:06.9]} 68. Kg4 {[%clk 0:00:19.6]} 68... Nc2 {[%clk 0:00:06.1]} 69. Nf3+
{[%clk 0:00:19.4]} 69... Kg2 {[%clk 0:00:06.4]} 70. Ng5 {[%clk 0:00:16.4]} 70...
Ne3+ {[%clk 0:00:05.8]} 71. Kf4 {[%clk 0:00:15.9]} 71... Nd5+ {[%clk 0:00:06.1]}
72. Kg4 {[%clk 0:00:15.8]} 72... Kh2 {[%clk 0:00:06.1]} 73. Nf3+ {[%clk
0:00:15.1]} 73... Kg2 {[%clk 0:00:06.6]} 74. Ng5 {[%clk 0:00:15.1]} 74... Nf6+
{[%clk 0:00:06.8]} 75. Kf4 {[%clk 0:00:14.4]} 75... Kf2 {[%clk 0:00:06.5]} 76.
Nh3+ {[%clk 0:00:14.1]} 76... Kg2 {[%clk 0:00:06.9]} 77. Ng5 {[%clk 0:00:14.9]}
77... Kh2 {[%clk 0:00:07.3]} 78. Nf3+ {[%clk 0:00:14.4]} 78... Kh3 {[%clk
0:00:07]} 79. Ng5+ {[%clk 0:00:14.4]} 79... Kg2 {[%clk 0:00:06.6]} 80. Nf3
{[%clk 0:00:14.6]} 80... Kf2 {[%clk 0:00:06.5]} 81. Nh4 {[%clk 0:00:14.4]} 81...
Nd5+ {[%clk 0:00:06.1]} 82. Kg4 {[%clk 0:00:14.5]} 82... Ne3+ {[%clk 0:00:05.1]}
83. Kh3 {[%clk 0:00:15]} 83... Nf5 {[%clk 0:00:04.4]} 84. Ng2 {[%clk 0:00:14.5]}
84... Ng7 {[%clk 0:00:03.6]} 85. Nh4 {[%clk 0:00:14.7]} 85... Ne6 {[%clk
0:00:03.6]} 86. Kg4 {[%clk 0:00:13.3]} 86... Nd4 {[%clk 0:00:03.8]} 87. Kh3
{[%clk 0:00:12]} 87... Nf3 {[%clk 0:00:04.1]} 88. Ng2 {[%clk 0:00:11.7]} 88...
Ng1+ {[%clk 0:00:03.8]} 89. Kg4 {[%clk 0:00:11.4]} 89... Kxg2 {[%clk 0:00:04.7]}
0-1

[Event "*** Titled Tuesday Blitz"]
[Site "Chess.com"]
[Date "2020.05.12"]
[Round "8"]
[White "GMSrinath"]
[Black "moro182"]
[Result "1/2-1/2"]
[WhiteElo "2823"]
[BlackElo "2689"]
[TimeControl "180+1"]
[EndTime "11:35:12 PDT"]
[Termination "Game drawn by agreement"]

1. d4 {[%clk 0:03:00.9]} 1... Nf6 {[%clk 0:02:59.5]} 2. Nf3 {[%clk 0:03:00.7]}
2... d5 {[%clk 0:02:59]} 3. c4 {[%clk 0:02:59.1]} 3... e6 {[%clk 0:02:59.4]} 4.
Nc3 {[%clk 0:02:59.1]} 4... c6 {[%clk 0:02:59]} 5. e3 {[%clk 0:02:54.8]} 5...
Nbd7 {[%clk 0:02:59.3]} 6. Bd3 {[%clk 0:02:54.9]} 6... a6 {[%clk 0:02:59.3]} 7.
b3 {[%clk 0:02:53.7]} 7... Bb4 {[%clk 0:02:58.5]} 8. Bd2 {[%clk 0:02:53.3]} 8...
O-O {[%clk 0:02:57.9]} 9. O-O {[%clk 0:02:53.3]} 9... Bd6 {[%clk 0:02:58.5]} 10.
e4 {[%clk 0:02:51.2]} 10... dxc4 {[%clk 0:02:58.4]} 11. bxc4 {[%clk 0:02:47.8]}
11... e5 {[%clk 0:02:59.3]} 12. d5 {[%clk 0:02:48.2]} 12... Nc5 {[%clk
0:02:51.3]} 13. Bc2 {[%clk 0:02:48.2]} 13... h6 {[%clk 0:02:46]} 14. h3 {[%clk
0:02:47]} 14... Bd7 {[%clk 0:02:38.7]} 15. a4 {[%clk 0:02:42.7]} 15... Qe7
{[%clk 0:02:36.1]} 16. a5 {[%clk 0:02:40.7]} 16... Rac8 {[%clk 0:02:32.5]} 17.
Re1 {[%clk 0:02:10.5]} 17... Rfe8 {[%clk 0:02:31.4]} 18. Nh2 {[%clk 0:01:54.1]}
18... cxd5 {[%clk 0:02:26.3]} 19. cxd5 {[%clk 0:01:55]} 19... Rc7 {[%clk
0:02:10.5]} 20. Na4 {[%clk 0:01:43.2]} 20... Nxa4 {[%clk 0:02:07.7]} 21. Bxa4
{[%clk 0:01:44.1]} 21... Rec8 {[%clk 0:02:00.8]} 22. Bxd7 {[%clk 0:01:28.7]}
22... Qxd7 {[%clk 0:02:01.7]} 23. Ng4 {[%clk 0:01:28.9]} 23... Nxg4 {[%clk
0:02:01.3]} 24. Qxg4 {[%clk 0:01:29.8]} 24... Qxg4 {[%clk 0:02:01]} 25. hxg4
{[%clk 0:01:30.7]} 25... Rc2 {[%clk 0:02:01.1]} 26. Be3 {[%clk 0:01:20.8]} 26...
Kf8 {[%clk 0:01:58.8]} 27. Rab1 {[%clk 0:01:09.8]} 27... R8c7 {[%clk 0:01:58.3]}
28. Bb6 {[%clk 0:01:10]} 28... Rd7 {[%clk 0:01:55.8]} 29. Rec1 {[%clk
0:01:08.9]} 29... Rxc1+ {[%clk 0:01:48.8]} 30. Rxc1 {[%clk 0:01:09.8]} 30... Ke7
{[%clk 0:01:48.3]} 31. f3 {[%clk 0:01:08.6]} 31... Kf6 {[%clk 0:01:43.1]} 32.
Rc8 {[%clk 0:01:07.6]} 32... Bb4 {[%clk 0:01:39.9]} 33. Kf2 {[%clk 0:00:59]}
33... Bd6 {[%clk 0:01:38.3]} 34. Ke3 {[%clk 0:00:58.6]} 34... Ke7 {[%clk
0:01:38.4]} 35. g3 {[%clk 0:00:57.7]} 35... Kf6 {[%clk 0:01:35]} 36. f4 {[%clk
0:00:56.2]} 36... Ke7 {[%clk 0:01:32.9]} 37. Kf3 {[%clk 0:00:55]} 37... Kf6
{[%clk 0:01:30.7]} 38. Bd8+ {[%clk 0:00:48.5]} 38... Be7 {[%clk 0:00:59.1]} 39.
Bb6 {[%clk 0:00:47.3]} 39... Bd6 {[%clk 0:00:58]} 40. Re8 {[%clk 0:00:47.8]}
40... Be7 {[%clk 0:00:27.6]} 41. fxe5+ {[%clk 0:00:42.8]} 41... Kxe5 {[%clk
0:00:28.5]} 42. Bc5 {[%clk 0:00:39.8]} 42... Kf6 {[%clk 0:00:28.7]} 43. e5+
{[%clk 0:00:28.4]} 43... Kxe5 {[%clk 0:00:28.6]} 44. Rxe7+ {[%clk 0:00:29]}
44... Rxe7 {[%clk 0:00:29.1]} 45. Bxe7 {[%clk 0:00:29.9]} 45... Kxd5 {[%clk
0:00:30]} 46. Bf8 {[%clk 0:00:28.9]} 46... Kc4 {[%clk 0:00:23.8]} 47. Bxg7
{[%clk 0:00:28.4]} 47... Kb4 {[%clk 0:00:23.9]} 48. Bxh6 {[%clk 0:00:26.7]}
48... Kxa5 {[%clk 0:00:24.4]} 49. Ke4 {[%clk 0:00:27.3]} 49... b5 {[%clk
0:00:24.2]} 50. Kd5 {[%clk 0:00:14]} 50... b4 {[%clk 0:00:20.7]} 51. Kd6 {[%clk
0:00:11.9]} 51... b3 {[%clk 0:00:20]} 52. Bg7 {[%clk 0:00:12.4]} 52... Kb4
{[%clk 0:00:19.9]} 53. Ke7 {[%clk 0:00:12.9]} 53... a5 {[%clk 0:00:20.5]} 54.
Kxf7 {[%clk 0:00:13.4]} 54... a4 {[%clk 0:00:21.1]} 55. g5 {[%clk 0:00:13.9]}
55... a3 {[%clk 0:00:21.5]} 56. Bf8+ {[%clk 0:00:13.8]} 56... Ka4 {[%clk
0:00:21.2]} 57. Bxa3 {[%clk 0:00:14.6]} 57... Kxa3 {[%clk 0:00:21.1]} 58. g6
{[%clk 0:00:15.5]} 58... b2 {[%clk 0:00:21.4]} 59. g7 {[%clk 0:00:16.4]} 59...
b1=Q {[%clk 0:00:22]} 60. g8=Q {[%clk 0:00:17.3]} 60... Qf5+ {[%clk 0:00:22.8]}
61. Ke7 {[%clk 0:00:17]} 61... Qe5+ {[%clk 0:00:22.4]} 62. Kf8 {[%clk
0:00:15.8]} 62... Qf6+ {[%clk 0:00:21.3]} 63. Qf7 {[%clk 0:00:14.8]} 63... Qd8+
{[%clk 0:00:21.1]} 64. Kg7 {[%clk 0:00:13.6]} 64... Qg5+ {[%clk 0:00:20.3]} 65.
Qg6 {[%clk 0:00:14]} 65... Qe5+ {[%clk 0:00:20.5]} 66. Kh6 {[%clk 0:00:13.1]}
66... Qe3+ {[%clk 0:00:20.1]} 67. Kh5 {[%clk 0:00:11.6]} 67... Qe5+ {[%clk
0:00:19.5]} 68. Qg5 {[%clk 0:00:11.7]} 68... Qe8+ {[%clk 0:00:19.6]} 69. Kh4
{[%clk 0:00:11.3]} 69... Qh8+ {[%clk 0:00:19.5]} 70. Kg4 {[%clk 0:00:11.1]}
70... Qd4+ {[%clk 0:00:19.7]} 71. Qf4 {[%clk 0:00:10.3]} 71... Qd7+ {[%clk
0:00:20.1]} 72. Kf3 {[%clk 0:00:10]} 72... Qc6+ {[%clk 0:00:20.1]} 73. Kf2
{[%clk 0:00:09.9]} 73... Qc2+ {[%clk 0:00:19]} 74. Kf3 {[%clk 0:00:10.2]} 74...
Qc6+ {[%clk 0:00:19.1]} 75. Qe4 {[%clk 0:00:10.6]} 75... Qf6+ {[%clk 0:00:18.4]}
76. Kg2 {[%clk 0:00:11]} 76... Qb2+ {[%clk 0:00:18.3]} 77. Kh3 {[%clk
0:00:11.5]} 77... Qh8+ {[%clk 0:00:18.9]} 78. Qh4 {[%clk 0:00:10.8]} 78... Qc8+
{[%clk 0:00:19.3]} 79. Qg4 {[%clk 0:00:10.3]} 79... Qh8+ {[%clk 0:00:18.8]} 80.
Kg2 {[%clk 0:00:10.8]} 80... Qb2+ {[%clk 0:00:19.4]} 81. Kf3 {[%clk 0:00:09.5]}
81... Qc3+ {[%clk 0:00:19.9]} 82. Kf4 {[%clk 0:00:09.9]} 82... Qd4+ {[%clk
0:00:20.5]} 83. Kg5 {[%clk 0:00:10.3]} 83... Qg7+ {[%clk 0:00:20.8]} 84. Kf5
{[%clk 0:00:07.9]} 84... Qf7+ {[%clk 0:00:21]} 85. Ke5 {[%clk 0:00:07.3]} 85...
Qe7+ {[%clk 0:00:20.2]} 86. Qe6 {[%clk 0:00:07.8]} 86... Qg5+ {[%clk 0:00:20]}
87. Kd4 {[%clk 0:00:06.2]} 87... Qxg3 {[%clk 0:00:19.4]} 88. Qa6+ {[%clk
0:00:06.6]} 88... Kb2 {[%clk 0:00:19.3]} 89. Qe2+ {[%clk 0:00:07]} 89... Ka1
{[%clk 0:00:18.9]} 90. Qd1+ {[%clk 0:00:07.1]} 90... Kb2 {[%clk 0:00:18.3]} 91.
Qd2+ {[%clk 0:00:07.6]} 91... Kb3 {[%clk 0:00:17.6]} 92. Qd1+ {[%clk 0:00:08.1]}
92... Ka2 {[%clk 0:00:17.7]} 93. Qe2+ {[%clk 0:00:08]} 93... Ka1 {[%clk
0:00:17.6]} 1/2-1/2